bitfinex-derivatives/quotes_SOLF0:USTF0_20220108
["timestamp","ask_amount","ask_price","bid_price","bid_amount"]
[1641672498458,11.07246778,135.74,135.73,15.58929937]
[1641672498658,11.07246778,135.74,135.73,11.87929937]
[1641672499058,11.07246778,135.74,135.68,6.168]
[1641672499258,7.07246778,135.74,135.68,6.168]
[1641672499660,27.66479,135.77,135.69,0.83746349]
[1641672499860,7.07032921,135.78,135.69,0.83746349]
[1641672500062,29.47027186,135.83,135.69,0.83746349]
[1641672500263,7.06826341,135.82,135.69,0.83746349]
[1641672500562,4.0,135.8,135.69,0.83746349]
[1641672500760,4.0,135.8,135.73,27.66479]
[1641672501160,4.0,135.75,135.73,27.66479]
[1641672501361,11.37109793,135.74,135.68,33.47376739]
[1641672501760,11.37109793,135.74,135.69,11.02350322]
[1641672501961,7.37109793,135.74,135.69,11.86168542]
[1641672502162,15.84946454,135.81,135.69,11.86168542]
[1641672502360,8.4827107,135.81,135.69,11.86168542]
[1641672502863,18.74417548,135.8,135.75,27.66479]
[1641672503261,8.4827107,135.81,135.75,27.66479]
[1641672503462,8.4827107,135.81,135.75,35.51579]
[1641672504063,8.4827107,135.81,135.76,0.8381822]
[1641672504363,4.0,135.77,135.76,0.8381822]
[1641672504564,7.07158222,135.76,135.69,71.5443]
[1641672504762,38.73637222,135.76,135.68,6.168]
[1641672504963,4.0,135.69,135.68,6.168]
[1641672505163,4.0,135.7,135.68,0.168]
[1641672505563,4.0,135.69,135.68,0.83863484]
[1641672505763,6.23766928,135.67,135.59,133.67861231]
[1641672505964,4.0,135.68,135.6,0.83919697]
[1641672506165,7.3724565,135.71,135.6,0.83919697]
[1641672506365,4.0,135.68,135.6,0.83919697]
[1641672506665,4.0,135.68,135.6,11.85129001]
[1641672506864,27.66479,135.67,135.6,11.85129001]
[1641672507264,27.66479,135.67,135.61,0.83919697]
[1641672507465,4.0,135.64,135.61,0.83919697]
[1641672507665,5.873,135.64,135.61,0.83919697]
[1641672508265,5.873,135.64,135.6,0.83919697]
[1641672509067,9.873,135.64,135.6,0.83919697]
[1641672509266,4.0,135.61,135.6,0.83919697]
[1641672509468,11.37735153,135.62,135.58,11.01209304]
[1641672509867,7.37735153,135.62,135.58,11.01209304]
[1641672510071,4.0,135.59,135.58,11.01209304]
[1641672510272,4.0,135.59,135.58,5.95772143]
[1641672510475,4.0,135.59,135.51,61.97921231]
[1641672510772,4.0,135.59,135.53,27.66479]
[1641672510973,7.37871241,135.59,135.53,27.66479]
[1641672511172,31.66479,135.61,135.53,27.66479]
[1641672511373,7.08079167,135.58,135.53,27.66479]
[1641672511574,11.08079167,135.58,135.53,27.66479]
[1641672511774,7.08079167,135.58,135.53,27.66479]
[1641672511973,11.08079167,135.58,135.53,27.66479]
[1641672512173,7.891,135.59,135.54,4.0]
[1641672512374,27.66479,135.61,135.54,4.0]
[1641672513384,31.66479,135.61,135.53,27.66479]
[1641672513578,11.0800891,135.6,135.53,27.66479]
[1641672513978,7.0800891,135.6,135.53,27.66479]
[1641672514579,5.89958595,135.61,135.53,27.66479]
[1641672514981,5.89958595,135.61,135.53,31.66479]
[1641672515381,5.89958595,135.61,135.55,4.0]
[1641672515582,7.07733183,135.65,135.6,4.0]
[1641672515780,8.49122001,135.67,135.59,4.0]
[1641672516384,8.49122001,135.67,135.6,4.0]
[1641672516581,8.49122001,135.67,135.58,7.3716413]
[1641672516784,7.07382093,135.72,135.66,27.66479]
[1641672517885,7.07382093,135.72,135.66,31.66479]
[1641672518087,8.0,135.75,135.69,4.0]
[1641672518287,8.0,135.75,135.7,4.0]
[1641672518587,29.47570097,135.81,135.7,4.0]
[1641672518887,20.5884743,135.8,135.74,27.66479]
[1641672519887,4.0,135.79,135.74,27.66479]
[1641672520090,4.0,135.79,135.72,27.66479]
[1641672520592,20.5884743,135.78,135.67,68.9975]
[1641672520889,20.5884743,135.78,135.69,27.66479]
[1641672521091,4.0,135.76,135.69,27.66479]
[1641672521488,24.5884743,135.78,135.69,27.66479]
[1641672521689,4.0,135.76,135.69,27.66479]
[1641672523090,4.0,135.75,135.67,27.66479]
[1641672523388,24.59301764,135.75,135.67,27.66479]
[1641672523588,4.0,135.71,135.63,137.3401]
[1641672523788,5.89695888,135.67,135.59,64.9042]
[1641672523989,5.89695888,135.67,135.58,41.37706521]
[1641672524688,5.89695888,135.67,135.57,4.0]
[1641672524889,5.89795695,135.65,135.59,27.66479]
[1641672526090,5.89858703,135.63,135.59,27.66479]
[1641672526291,5.89858703,135.63,135.6,0.83755974]
[1641672526992,33.5644946,135.61,135.6,0.83755974]
[1641672527291,33.5644946,135.61,135.54,163.21959]
[1641672527292,33.5644946,135.61,135.58,0.83755974]
[1641672527490,27.66479,135.63,135.58,0.83755974]
[1641672527890,27.66479,135.63,135.57,0.83755974]
[1641672528292,27.66479,135.63,135.55,0.83755974]
[1641672528491,5.89915566,135.62,135.55,0.83755974]
[1641672529194,5.89915566,135.62,135.55,16.38906338]
[1641672529794,5.89915566,135.62,135.56,0.83755974]
[1641672530393,5.89972582,135.6,135.56,0.83755974]
[1641672531192,34.74307825,135.63,135.56,0.83755974]
[1641672531592,34.74307825,135.63,135.55,0.83755974]
[1641672531992,8.647,135.67,135.6,4.0]
[1641672532192,8.647,135.67,135.57,7.3724565]
[1641672532392,8.647,135.67,135.61,0.83755974]
[1641672532793,5.89727004,135.66,135.61,0.83755974]
[1641672532993,5.89727004,135.66,135.6,27.66479]
[1641672533195,4.0,135.65,135.59,0.83755974]
[1641672533398,9.89832792,135.64,135.61,0.83755974]
[1641672533597,5.06197167,135.61,135.56,4.0]
[1641672533897,8.647,135.67,135.6,4.0]
[1641672534196,8.647,135.67,135.62,4.0]
[1641672534397,8.647,135.67,135.63,4.0]
[1641672534598,8.647,135.67,135.64,4.0]
[1641672534799,15.55150364,135.73,135.66,11.36756797]
[1641672534997,15.55150364,135.75,135.69,27.66479]
[1641672535197,15.55150364,135.75,135.69,31.66479]
[1641672535598,15.55150364,135.75,135.72,4.0]
[1641672535798,15.55150364,135.75,135.72,7.36404139]
[1641672535999,15.55150364,135.75,135.73,0.83729086]
[1641672536199,15.55150364,135.75,135.73,4.83729086]
[1641672536398,15.55150364,135.85,135.73,0.83729086]
[1641672536598,15.55150364,135.85,135.74,4.0]
[1641672536798,15.55150364,135.85,135.74,4.83729086]
[1641672536998,15.55150364,135.85,135.77,27.66479]
[1641672537598,20.58709772,135.84,135.77,27.66479]
[1641672537998,20.58709772,135.85,135.77,27.66479]
[1641672539600,5.88984888,135.83,135.77,27.66479]
[1641672539998,20.58709772,135.82,135.77,27.66479]
[1641672540601,29.46484476,135.86,135.77,31.66479]
[1641672540800,7.06570489,135.87,135.78,4.0]
[1641672541002,15.55150364,135.9,135.86,27.66479]
[1641672541601,15.55150364,135.9,135.86,34.40579]
[1641672542101,27.66479,135.94,135.86,34.40579]
[1641672542804,27.38805199,135.93,135.86,34.40579]
[1641672543102,27.38805199,135.93,135.86,27.66479]
[1641672543303,5.88683574,135.9,135.81,1.839]
[1641672543601,5.88683574,135.9,135.77,21.39150364]
[1641672543803,21.50264212,135.89,135.82,0.8363663]
[1641672544202,21.50264212,135.89,135.82,4.8363663]
[1641672544403,21.50264212,135.89,135.82,12.19498877]
[1641672544602,21.50264212,135.89,135.84,4.0]
[1641672544803,21.50264212,135.89,135.82,8.19498877]
[1641672544804,4.212e-05,135.92,135.88,4.0]
[1641672545004,4.212e-05,135.92,135.88,31.66479]
[1641672545203,43.21629364,135.96,135.88,27.66479]
[1641672545404,43.21629364,135.96,135.88,31.66479]
[1641672545605,5.88489957,135.95,135.88,27.66479]
[1641672546505,5.88489957,135.95,135.91,4.0]
[1641672546704,7.06015031,135.98,135.91,11.35402265]
[1641672546906,28.49123319,136.02,135.91,11.35402265]
[1641672547107,28.49123319,136.02,135.95,27.66479]
[1641672547307,21.4333673,136.02,135.95,27.66479]
[1641672547706,21.4333673,136.02,135.95,34.17279]
[1641672547907,4.0,136.0,135.95,34.17279]
[1641672548105,9.88265272,136.0,135.95,34.17279]
[1641672549509,5.88265272,136.0,135.95,34.17279]
[1641672549709,27.66479,136.04,135.95,34.17279]
[1641672549710,27.66479,136.04,135.96,4.0]
[1641672549910,21.49892617,135.99,135.95,34.17279]
[1641672550308,21.49892617,135.99,135.94,1.838]
[1641672550309,5.88368754,135.97,135.93,27.66479]
[1641672550909,21.49892617,135.96,135.93,27.66479]
[1641672551612,5.88287816,135.99,135.93,31.66479]
[1641672551812,21.49892617,136.01,135.93,39.01746086]
[1641672552010,21.49892617,136.01,135.94,1.838]
[1641672552211,21.49892617,136.01,135.93,35.01746086]
[1641672552409,21.49892617,135.98,135.93,35.01746086]
[1641672552609,21.49892617,135.98,135.93,39.01746086]
[1641672552910,5.881187,136.03,135.94,4.1788137]
[1641672553111,5.881187,136.03,135.96,27.66479]
[1641672553711,34.72088047,136.06,135.96,27.66479]
[1641672553912,5.88036418,136.05,135.96,27.66479]
[1641672554211,5.87863369,136.09,135.96,27.66479]
[1641672554410,5.87863369,136.09,136.02,4.0]
[1641672555011,124.17252677,136.16,136.04,4.0]
[1641672555211,24.01252677,136.16,136.07,27.66479]
[1641672555812,8.46102313,136.16,136.07,27.66479]
[1641672558314,8.46102313,136.16,136.07,31.66479]
[1641672558513,5.87460772,136.18,136.07,27.66479]
[1641672558713,12.42788172,136.22,136.09,4.0]
[1641672558914,4.0,136.21,136.1,1.836]
[1641672559114,12.42788172,136.22,136.12,27.66479]
[1641672559115,27.66479,136.2,136.12,27.66479]
[1641672559514,33.53865272,136.2,136.12,19.31456994]
[1641672559915,4.0,136.17,136.08,1.836]
[1641672560117,7.35023888,136.13,136.01,1.836]
[1641672560315,5.87860041,136.09,135.99,1.837]
[1641672560515,5.87860041,136.09,135.98,29.39447384]
[1641672561017,5.87907727,136.08,135.99,4.17717971]
[1641672561217,33.54386727,136.08,136.01,27.66479]
[1641672561417,5.87907727,136.08,136.01,27.66479]
[1641672561619,7.05221301,136.13,136.04,7.34699875]
[1641672561817,4.0,136.13,136.06,7.34591934]
[1641672562018,4.0,136.12,136.02,9.18480852]
[1641672562218,5.8783004,136.1,136.02,7.34780852]
[1641672562417,13.23016042,136.1,135.99,29.50179]
[1641672562617,9.88048461,136.05,135.93,69.9644]
[1641672562818,4.0,136.01,135.93,68.1274]
[1641672563019,4.0,136.0,135.92,7.35321152]
[1641672563219,9.88177102,136.02,135.95,27.66479]
[1641672563418,5.88177102,136.02,135.95,27.66479]
[1641672563621,4.0,135.99,135.94,4.17867255]
[1641672563821,9.88299393,135.99,135.89,1.838]
[1641672564021,4.0,135.97,135.87,29.41933586]
[1641672564225,5.88421749,135.96,135.9,4.17998755]
[1641672564923,5.88421749,135.96,135.88,4.17998755]
[1641672565121,33.54900749,135.96,135.88,4.17998755]
[1641672565321,4.0,135.93,135.86,27.66479]
[1641672565521,4.0,135.91,135.84,27.66479]
[1641672565721,5.8874497,135.89,135.81,11.22]
[1641672565921,5.8874497,135.89,135.78,29.43882245]
[1641672566122,4.0,135.87,135.82,4.18253305]
[1641672566325,5.8874497,135.89,135.82,4.18253305]
[1641672566326,4.0,135.86,135.82,4.18253305]
[1641672566521,4.0,135.88,135.82,0.00253305]
[1641672566724,4.0,135.88,135.79,0.00253305]
[1641672566922,5.88900015,135.85,135.79,0.00253305]
[1641672567122,5.88900015,135.85,135.77,27.66479]
[1641672567523,5.8893698,135.84,135.77,27.66479]
[1641672567723,4.0,135.83,135.77,27.66479]
[1641672567923,4.0,135.83,135.78,4.18347224]
[1641672568523,4.0,135.8,135.77,27.66479]
[1641672568823,5.8893698,135.84,135.77,27.66479]
[1641672569023,5.8893698,135.84,135.78,4.18347283]
[1641672569225,5.8893698,135.84,135.79,11.3602473]
[1641672569422,5.88666177,135.91,135.8,4.0]
[1641672569623,5.88666177,135.91,135.79,9.2002473]
[1641672570023,5.88699533,135.9,135.81,4.18347283]
[1641672570823,5.88699533,135.9,135.8,4.18347283]
[1641672571023,5.88699533,135.9,135.8,11.54344928]
[1641672571224,5.88699533,135.9,135.84,27.66479]
[1641672571424,27.66479,135.93,135.84,27.66479]
[1641672571625,5.88508692,135.94,135.84,27.66479]
[1641672571824,5.88508692,135.94,135.85,4.18347283]
[1641672572225,5.08223218,135.97,135.85,4.18347283]
[1641672572427,5.88445204,135.96,135.85,4.18347283]
[1641672573125,5.88445204,135.96,135.88,35.02043546]
[1641672573126,27.66479,135.95,135.88,35.02043546]
[1641672573326,67.5635,136.0,135.88,35.02043546]
[1641672573528,5.08223218,136.01,135.9,7.35456351]
[1641672574332,78.82531402,136.02,135.91,4.18347283]
[1641672574830,78.82531402,136.02,135.91,8.18347283]
[1641672575030,78.82531402,136.02,135.91,4.18347283]
[1641672575230,27.66479,136.01,135.93,27.66479]
[1641672577133,4.0,135.97,135.93,27.66479]
[1641672577333,4.0,135.97,135.88,35.02043546]
[1641672577534,5.88489487,135.95,135.88,35.02043546]
[1641672578334,7.06045464,135.97,135.9,11.35429307]
[1641672578534,10.96460949,136.0,135.91,4.0]
[1641672578934,10.96460949,136.0,135.9,13.19229307]
[1641672579137,5.88237731,136.0,135.93,27.66479]
[1641672580537,7.05793871,136.02,135.95,4.0]
[1641672580737,5.08223218,136.03,135.96,4.0]
[1641672581338,32.74702218,136.03,135.96,31.66479]
[1641672581538,27.66479,136.03,135.96,31.66479]
[1641672581739,13.54815232,136.08,135.96,40.20679]
[1641672582642,8.46592014,136.08,135.96,40.20679]
[1641672583041,8.46592014,136.08,135.99,4.0]
[1641672583242,15.55150364,136.12,136.05,4.0]
[1641672583440,15.55150364,136.12,136.06,1.837]
[1641672583841,5.87608925,136.15,136.04,1.837]
[1641672584041,5.87608925,136.15,136.04,5.837]
[1641672585144,5.87608925,136.15,136.04,4.0]
[1641672585345,5.87724096,136.12,136.03,9.18326865]
[1641672585545,5.87724096,136.12,136.02,29.50179]
[1641672585746,5.87851052,136.09,136.02,27.66479]
[1641672585946,7.05336992,136.11,136.02,27.66479]
[1641672586250,5.87717334,136.12,136.02,27.66479]
[1641672586449,39.01421858,136.15,136.02,27.66479]
[1641672586648,39.01421858,136.15,136.03,1.837]
[1641672587049,35.01421858,136.15,136.03,1.837]
[1641672587248,35.01421858,136.15,136.05,27.66479]
[1641672588650,27.66479,136.15,136.05,27.66479]
[1641672589351,7.05054284,136.16,136.05,27.66479]
[1641672589649,21.42632693,136.18,136.07,11.34510999]
[1641672589851,21.42632693,136.18,136.08,1.836]
[1641672590052,15.55150364,136.18,136.09,4.0]
[1641672590250,15.55150364,136.18,136.1,1.836]
[1641672590450,15.55150364,136.18,136.11,4.0]
[1641672590650,41.37706521,136.21,136.13,4.0]
[1641672590852,56.80028477,136.21,136.16,7.34052705]
[1641672591151,15.42321956,136.21,136.16,7.34052705]
[1641672591351,41.37706521,136.24,136.2,4.0]
[1641672591552,27.66479,136.3,136.22,4.0]
[1641672591753,27.66479,136.3,136.22,1.834]
[1641672592151,27.66479,136.3,136.23,4.0]
[1641672592352,31.66479,136.3,136.2,1.834]
[1641672592554,4.0,136.29,136.19,27.66479]
[1641672592755,5.87056963,136.28,136.19,27.66479]
[1641672593156,27.66479,136.3,136.19,27.66479]
[1641672593452,27.66479,136.3,136.22,31.66479]
[1641672593853,27.66479,136.3,136.24,4.0]
[1641672594153,5.86786509,136.34,136.25,11.3354117]
[1641672594353,69.0371,136.39,136.29,7.33352889]
[1641672594553,12.44517435,136.41,136.29,7.33352889]
[1641672594754,4.0,136.38,136.27,1.833]
[1641672594956,13.20400156,136.37,136.27,1.833]
[1641672595157,13.20400156,136.37,136.23,1.833]
[1641672595356,33.53248327,136.34,136.26,27.66479]
[1641672596559,27.66479,136.34,136.26,27.66479]
[1641672596757,27.66479,136.34,136.27,1.834]
[1641672598057,27.66479,136.34,136.26,55.32958]
[1641672598961,33.53252918,136.34,136.26,55.32958]
[1641672599359,17.20983217,136.31,136.22,1.834]
[1641672599559,4.0,136.27,136.16,1.834]
[1641672599860,5.87195409,136.25,136.15,4.0]
[1641672600059,13.21213377,136.29,136.14,4.0]
[1641672600260,13.21213377,136.29,136.15,5.835]
[1641672600459,5.87025939,136.29,136.16,11.34025764]
[1641672600761,5.86946125,136.3,136.18,7.33918021]
[1641672601361,5.87034379,136.28,136.22,27.66479]
[1641672603065,4.0,136.25,136.22,27.66479]
[1641672603264,37.53643721,136.25,136.16,27.66479]
[1641672603465,4.0,136.24,136.16,27.66479]
[1641672603665,5.87290485,136.22,136.16,27.66479]
[1641672603865,5.87290485,136.22,136.14,27.66479]
[1641672605472,5.87290485,136.22,136.14,55.32958]
[1641672605966,5.8732906,136.21,136.14,55.32958]
[1641672606567,5.8732906,136.21,136.14,27.66479]
[1641672606769,5.87456518,136.19,136.14,27.66479]
[1641672607069,57.04522998,136.25,136.14,27.66479]
[1641672607070,5.87217177,136.24,136.14,27.66479]
[1641672607268,5.87217177,136.24,136.14,35.38479]
[1641672607467,5.87217177,136.24,136.19,27.66479]
[1641672607669,74.66164974,136.27,136.19,27.66479]
[1641672607870,5.87119715,136.26,136.19,27.66479]
[1641672608071,4.0,136.24,136.19,27.66479]
[1641672608472,4.0,136.23,136.19,27.66479]
[1641672608674,5.87256912,136.23,136.19,27.66479]
[1641672608874,5.87392578,136.2,136.14,27.66479]
[1641672609174,7.04694522,136.23,136.14,35.00612539]
[1641672609374,7.04694522,136.23,136.18,27.66479]
[1641672611378,7.04694522,136.23,136.18,55.32958]
[1641672612879,5.87328655,136.21,136.18,27.66479]
[1641672613078,5.87328655,136.21,136.11,7.34322221]
[1641672613280,9.87328655,136.21,136.11,7.34322221]
[1641672613481,5.87420583,136.19,136.12,27.66479]
[1641672613879,5.87515435,136.17,136.12,27.66479]
[1641672614080,5.87515435,136.17,136.1,27.66479]
[1641672614280,5.87681805,136.13,136.1,27.66479]
[1641672614579,5.87681805,136.13,136.04,1.836]
[1641672614779,4.0,136.12,136.04,7.34672887]
[1641672614979,5.8788636,136.09,136.01,1.837]
[1641672615182,5.88008706,136.06,135.98,41.04802342]
[1641672615382,5.88008706,136.06,136.01,27.66479]
[1641672615583,5.88008706,136.06,136.02,4.17565836]
[1641672615584,9.88008706,136.06,136.02,4.17565836]
[1641672615784,5.88124532,136.03,136.02,4.17565836]
[1641672616082,5.88124532,136.03,135.99,27.66479]
[1641672616283,5.88124532,136.03,135.92,1.837]
[1641672616482,5.88124532,136.03,135.92,7.35348187]
[1641672616982,5.88223993,136.01,135.93,4.17780534]
[1641672617182,4.0,135.98,135.93,4.17780534]
[1641672617383,4.0,135.97,135.93,4.17780534]
[1641672617684,4.0,135.97,135.9,31.84259534]
[1641672617886,4.0,135.96,135.9,27.66479]
[1641672618084,4.0,135.92,135.83,41.04802342]
[1641672618285,9.88630123,135.91,135.83,41.04802342]
[1641672618486,4.0,135.89,135.83,41.04802342]
[1641672618688,4.0,135.89,135.79,7.36051818]
[1641672618889,4.0,135.89,135.84,4.18059593]
[1641672619489,4.0,135.89,135.82,27.66479]
[1641672620591,29.1905416,135.91,135.83,4.18059593]
[1641672620792,7.06232049,135.94,135.87,4.0]
[1641672620993,7.35699834,136.01,135.85,7.35699834]
[1641672621192,10.82,136.06,135.93,4.0]
[1641672621394,27.66479,136.05,135.93,27.66479]
[1641672621993,27.66479,136.05,135.94,4.18059593]
[1641672622194,27.66479,136.05,135.94,9.94759593]
[1641672622793,18.17402265,136.06,135.94,9.94759593]
[1641672623193,18.17402265,136.06,135.94,5.767]
[1641672623396,27.66479,136.04,135.94,5.767]
[1641672623795,0.0001,135.99,135.98,4.0]
[1641672624297,0.0001,135.99,135.98,11.463]
[1641672624495,0.0001,135.99,135.98,15.64084836]
[1641672624897,0.0001,135.99,135.98,22.99108724]
[1641672625298,0.0001,135.99,135.98,26.99108724]
[1641672625496,0.0001,135.99,135.98,82.32066724]
[1641672625696,0.0001,135.99,135.98,78.32066724]
[1641672626396,0.0001,135.99,135.98,82.32066724]
[1641672626798,5.87701068,136.13,135.98,82.32066724]
[1641672626999,5.87701068,136.13,135.99,4.0]
[1641672627197,5.87701068,136.13,136.05,4.0]
[1641672627498,5.87701068,136.13,136.05,27.66479]
[1641672627699,5.87812701,136.1,136.0,4.17784836]
[1641672628099,5.87812701,136.1,135.99,4.0]
[1641672628402,5.87951138,136.07,135.99,4.0]
[1641672628599,14.13951138,136.07,135.99,4.0]
[1641672628799,14.13951138,136.07,135.95,1.837]
[1641672628999,14.13951138,136.07,135.93,9.19094118]
[1641672629601,14.13951138,136.07,136.0,27.66479]
[1641672629801,5.88069956,136.04,135.98,27.66479]
[1641672630002,5.88069956,136.04,135.95,1.837]
[1641672630201,5.88246901,136.0,135.94,4.17724639]
[1641672630402,5.88246901,136.0,135.9,1.838]
[1641672630601,5.88246901,136.0,135.91,4.0]
[1641672630802,5.88246901,136.0,135.87,22.65824493]
[1641672631004,5.88246901,136.0,135.92,8.17882518]
[1641672631203,5.88246901,136.0,135.92,4.17882518]
[1641672631404,5.88246901,136.0,135.93,4.17882518]
[1641672631606,33.54725901,136.0,135.93,4.17882518]
[1641672631804,33.54725901,136.0,135.92,27.66479]
[1641672632205,33.54725901,136.0,135.93,4.17882518]
[1641672632505,7.05712698,136.04,135.99,4.0]
[1641672632707,8.46650461,136.07,136.03,4.0]
[1641672633410,8.46650461,136.07,135.99,8.627]
[1641672633608,8.46650461,136.07,136.03,27.66479]
[1641672634407,7.05341771,136.11,136.03,27.66479]
[1641672636213,5.88006084,136.06,135.95,11.35158978]
[1641672636410,1.70538823,136.04,135.95,11.35158978]
[1641672636811,7.05540354,136.07,135.96,4.17735192]
[1641672637013,7.05643489,136.05,135.96,4.17735192]
[1641672637711,27.66479,136.04,135.96,31.84214192]
[1641672638012,29.75350914,136.04,135.96,31.84214192]
[1641672638211,29.75350914,136.04,135.96,4.17735192]
[1641672638813,2.08871914,136.03,135.94,27.66479]
[1641672639112,7.05845411,136.01,135.94,27.66479]
[1641672639312,7.05845411,136.01,135.95,3.58822435]
[1641672640212,35.34479,136.04,135.95,3.58822435]
[1641672640613,7.68,136.04,136.0,4.0]
[1641672640814,7.68,136.04,136.03,4.0]
[1641672641713,7.68,136.04,136.03,30.83321313]
[1641672641915,7.68,136.04,136.03,3.16842313]
[1641672642115,5.88124296,136.03,135.95,15.30205838]
[1641672642515,5.88256033,136.0,135.95,15.30205838]
[1641672643318,5.88256033,136.0,135.93,4.0]
[1641672643520,5.88256033,136.0,135.98,4.0]
[1641672643718,7.68,136.04,135.99,4.0]
[1641672644218,7.68,136.04,135.96,1.838]
[1641672644418,7.68,136.04,135.96,4.0]
[1641672644618,7.68,136.04,135.98,4.0]
[1641672644818,7.68,136.04,135.97,2.39618297]
[1641672645019,7.68,136.04,135.96,4.0]
[1641672645420,5.88125624,136.03,135.95,27.66479]
[1641672645621,16.40082484,136.03,135.97,2.39686764]
[1641672646421,10.5195686,136.02,135.93,35.01773118]
[1641672646825,5.88293781,135.99,135.93,7.35294118]
[1641672647023,5.88504191,135.94,135.9,15.30205838]
[1641672647625,5.88538746,135.93,135.9,15.30205838]
[1641672647824,5.88538746,135.93,135.86,42.96684838]
[1641672648226,5.88661998,135.91,135.87,2.39980926]
[1641672648428,5.8878769,135.88,135.87,2.39980926]
[1641672648627,5.8878769,135.88,135.87,9.26e-06]
[1641672648828,5.88845858,135.86,135.82,41.04802342]
[1641672649233,5.88845858,135.86,135.8,19.53069266]
[1641672649630,5.88845858,135.86,135.8,15.53069266]
[1641672650232,5.88845858,135.86,135.81,1.89750878]
[1641672650530,35.58079,135.87,135.81,1.89750878]
[1641672650531,7.06325657,135.92,135.81,2.82223937]
[1641672650731,7.06325657,135.92,135.82,4.0]
[1641672651132,7.06325657,135.92,135.82,5.89750878]
[1641672651331,7.06325657,135.92,135.83,4.0]
[1641672651532,10.76644158,135.91,135.83,1.89750878]
[1641672651733,10.76644158,135.91,135.85,27.66479]
[1641672651933,7.06325657,135.92,135.85,27.66479]
[1641672652432,5.88635333,135.91,135.86,1.89750878]
[1641672653234,5.88810931,135.87,135.86,1.89750878]
[1641672653433,5.88810931,135.87,135.84,1.89750878]
[1641672653732,33.55289931,135.87,135.79,27.66479]
[1641672653932,33.55289931,135.87,135.79,31.66479]
[1641672654233,33.55289931,135.87,135.8,6.40153274]
[1641672654632,33.55289931,135.87,135.8,2.40153274]
[1641672654833,33.55289931,135.87,135.81,2.40153274]
[1641672655434,5.88810931,135.87,135.84,4.0]
[1641672655635,7.06360396,135.91,135.86,31.66479]
[1641672655835,5.8849617,135.94,135.9,4.0]
[1641672656035,5.88325695,135.98,135.87,7.355916]
[1641672656239,5.88325695,135.98,135.89,4.0]
[1641672656439,5.88501763,135.94,135.89,4.0]
[1641672656641,5.88501763,135.94,135.86,27.66479]
[1641672657039,5.88501763,135.94,135.89,4.0]
[1641672657238,5.88501763,135.94,135.86,27.66479]
[1641672657441,5.88501763,135.94,135.88,4.0]
[1641672657740,5.88501763,135.94,135.91,4.0]
[1641672657941,34.72549115,135.97,135.93,4.0]
[1641672658144,7.06070115,135.97,135.93,4.0]
[1641672658444,7.06070115,135.97,135.9,27.66479]
[1641672658644,7.06070115,135.97,135.95,4.0]
[1641672659044,5.17034273,136.01,135.95,4.0]
[1641672659244,14.4144611,136.02,135.95,4.0]
[1641672659545,13.16177725,136.01,135.95,4.0]
[1641672659744,5.88282265,135.99,135.93,4.0]
[1641672660444,5.88282265,135.99,135.91,4.0]
[1641672660646,19.04510919,135.98,135.9,55.32958]
[1641672660946,13.16177725,135.97,135.9,55.32958]
[1641672661247,13.16177725,135.97,135.93,4.0]
[1641672661849,13.16177725,135.97,135.9,55.32958]
[1641672662047,13.16177725,135.97,135.93,4.0]
[1641672662246,13.16177725,135.97,135.9,55.32958]
[1641672662445,13.16177725,135.97,135.96,4.0]
[1641672663048,27.66479,136.01,135.96,4.0]
[1641672663347,27.66479,136.01,135.97,4.0]
[1641672663548,27.66479,136.01,135.92,7.35348187]
[1641672663749,19.04338754,136.0,135.9,29.50279]
[1641672663947,5.88507039,135.94,135.9,27.66479]
[1641672665048,5.88507039,135.94,135.9,31.66479]
[1641672665249,7.05973126,135.99,135.92,4.0]
[1641672665649,27.66479,135.97,135.9,27.66479]
[1641672665849,33.54874356,135.97,135.9,27.66479]
[1641672666049,5.88567029,135.93,135.9,27.66479]
[1641672667450,5.88611641,135.92,135.9,27.66479]
[1641672667652,5.88697325,135.9,135.83,31.66479]
[1641672667850,12.95114367,135.9,135.8,4.0]
[1641672668050,5.8891051,135.85,135.79,4.04802342]
[1641672668350,5.8891051,135.85,135.77,4.04802342]